[Event "MČR družstev mladších žáků 2024"]
[Site "Harrachov, Czech Republic"]
[Date "2024.06.15"]
[Round "3.16"]
[White "Sevcikova Terezie"]
[Black "Hamernikova Iris"]
[Result "1/2-1/2"]
[TimeControl "25+10"]
[WhiteFideId "23766425"]
[BlackFideId "23745738"]
[WhiteElo "1447"]
[BlackElo "1216"]

1. d4 {[%clk 00:25:16]} {[%emt 00:00:03]} d5 {[%clk 00:25:19]} {[%emt
00:00:02]} 2. Bf4 {[%clk 00:25:15]} {[%emt 00:00:11]} e6 {[%clk 00:25:23]}
{[%emt 00:00:06]} 3. e3 {[%clk 00:25:23]} {[%emt 00:00:03]} Nf6 {[%clk
00:25:31]} {[%emt 00:00:02]} 4. c3 {[%clk 00:25:26]} {[%emt 00:00:06]} Nbd7
{[%clk 00:25:32]} {[%emt 00:00:10]} 5. Nf3 {[%clk 00:25:23]} {[%emt 00:00:13]}
Be7 {[%clk 00:25:25]} {[%emt 00:00:17]} 6. Bd3 {[%clk 00:24:55]} {[%emt
00:00:38]} b6 {[%clk 00:24:48]} {[%emt 00:00:47]} 7. Nbd2 {[%clk 00:24:58]}
{[%emt 00:00:07]} Bb7 {[%clk 00:24:29]} {[%emt 00:00:29]} 8. O-O {[%clk
00:23:30]} {[%emt 00:01:37]} h6 {[%clk 00:23:59]} {[%emt 00:00:41]} 9. Bb5
{[%clk 00:18:33]} {[%emt 00:05:07]} c6 {[%clk 00:23:55]} {[%emt 00:00:14]} 10.
Ba4 {[%clk 00:18:18]} {[%emt 00:00:24]} b5 {[%clk 00:23:29]} {[%emt 00:00:38]}
11. Bb3 {[%clk 00:18:16]} {[%emt 00:00:06]} c5 {[%clk 00:23:04]} {[%emt
00:00:40]} 12. a4 {[%clk 00:17:22]} {[%emt 00:01:04]} c4 {[%clk 00:22:57]}
{[%emt 00:00:17]} 13. Bc2 {[%clk 00:17:29]} {[%emt 00:00:02]} Bc6 {[%clk
00:22:09]} {[%emt 00:00:57]} 14. axb5 {[%clk 00:14:46]} {[%emt 00:02:55]} Bxb5
{[%clk 00:22:15]} {[%emt 00:00:03]} 15. Ba4 {[%clk 00:14:21]} {[%emt 00:00:35]}
Bxa4 {[%clk 00:22:11]} {[%emt 00:00:15]} 16. Rxa4 {[%clk 00:13:46]} {[%emt
00:00:46]} O-O {[%clk 00:21:46]} {[%emt 00:00:35]} 17. Qc2 {[%clk 00:13:44]}
{[%emt 00:00:10]} Nb6 {[%clk 00:21:02]} {[%emt 00:00:56]} 18. Ra2 {[%clk
00:11:52]} {[%emt 00:01:58]} a5 {[%clk 00:18:27]} {[%emt 00:02:49]} 19. Ne5
{[%clk 00:11:09]} {[%emt 00:00:53]} Qc8 {[%clk 00:14:53]} {[%emt 00:03:44]} 20.
Re1 {[%clk 00:09:38]} {[%emt 00:01:41]} Nbd7 {[%clk 00:07:37]} {[%emt
00:07:27]} 21. Raa1 {[%clk 00:06:11]} {[%emt 00:03:36]} Nxe5 {[%clk 00:07:31]}
{[%emt 00:00:16]} 22. Bxe5 {[%clk 00:06:09]} {[%emt 00:00:11]} Nd7 {[%clk
00:07:34]} {[%emt 00:00:08]} 23. Bg3 {[%clk 00:06:13]} {[%emt 00:00:04]} Nf6
{[%clk 00:06:52]} {[%emt 00:00:53]} 24. e4 {[%clk 00:05:53]} {[%emt 00:00:31]}
Nh5 {[%clk 00:06:03]} {[%emt 00:00:59]} 25. exd5 {[%clk 00:05:47]} {[%emt
00:00:16]} Nxg3 {[%clk 00:05:54]} {[%emt 00:00:19]} 26. hxg3 {[%clk 00:05:54]}
{[%emt 00:00:03]} Bd6 {[%clk 00:05:37]} {[%emt 00:00:26]} 27. dxe6 {[%clk
00:05:56]} {[%emt 00:00:07]} fxe6 {[%clk 00:05:46]} {[%emt 00:00:02]} 28. Nf3
{[%clk 00:06:01]} {[%emt 00:00:05]} Rf6 {[%clk 00:05:23]} {[%emt 00:00:32]} 29.
Nd2 {[%clk 00:05:45]} {[%emt 00:00:27]} Qf8 {[%clk 00:05:03]} {[%emt 00:00:30]}
30. Nxc4 {[%clk 00:05:33]} {[%emt 00:00:32]} Bc7 {[%clk 00:05:21]} {[%emt
00:00:01]} 31. Rf1 {[%clk 00:05:30]} {[%emt 00:00:13]} Qb8 {[%clk 00:04:24]}
{[%emt 00:01:07]} 32. Qd3 {[%clk 00:04:59]} {[%emt 00:00:41]} a4 {[%clk
00:02:29]} {[%emt 00:02:05]} 33. d5 {[%clk 00:04:20]} {[%emt 00:00:50]} Qd8
{[%clk 00:02:02]} {[%emt 00:00:33]} 34. Rad1 {[%clk 00:04:25]} {[%emt
00:00:08]} exd5 {[%clk 00:02:07]} {[%emt 00:00:06]} 35. Qxd5+ {[%clk 00:04:33]}
{[%emt 00:00:02]} Qxd5 {[%clk 00:01:50]} {[%emt 00:01:21]} 36. Rxd5 {[%clk
00:05:41]} {[%emt 00:00:01]} Rc8 {[%clk 00:01:53]} {[%emt 00:00:07]} 37. Ne3
{[%clk 00:05:21]} {[%emt 00:00:30]} Bb6 {[%clk 00:01:47]} {[%emt 00:00:16]} 38.
Rb5 {[%clk 00:04:48]} {[%emt 00:00:42]} Rcf8 {[%clk 00:01:48]} {[%emt
00:00:10]} 39. Re5 {[%clk 00:04:21]} {[%emt 00:00:37]} Kh7 {[%clk 00:01:39]}
{[%emt 00:00:20]} 40. g4 {[%clk 00:04:12]} {[%emt 00:00:18]} Kg6 {[%clk
00:01:20]} {[%emt 00:00:28]} 41. g3 {[%clk 00:04:06]} {[%emt 00:00:17]} R8f7
{[%clk 00:00:50]} {[%emt 00:00:40]} 42. Kg2 {[%clk 00:04:09]} {[%emt 00:00:07]}
Rf8 {[%clk 00:00:54]} {[%emt 00:00:06]} 43. f4 {[%clk 00:03:33]} {[%emt
00:00:45]} Bxe3 {[%clk 00:00:47]} {[%emt 00:00:17]} 44. Rxe3 {[%clk 00:03:42]}
h5 {[%clk 00:00:57]} 45. gxh5+ {[%clk 00:03:46]} {[%emt 00:00:07]} Kxh5 {[%clk
00:01:04]} {[%emt 00:00:02]} 46. Rh1+ {[%clk 00:03:48]} {[%emt 00:00:07]} Kg6
{[%clk 00:01:11]} {[%emt 00:00:03]} 47. Re4 {[%clk 00:03:51]} {[%emt 00:00:06]}
Rb8 {[%clk 00:01:17]} {[%emt 00:00:05]} 48. Rxa4 {[%clk 00:03:53]} {[%emt
00:00:09]} Rxb2+ {[%clk 00:01:26]} {[%emt 00:00:01]} 49. Kf3 {[%clk 00:04:01]}
{[%emt 00:00:01]} Rb3 {[%clk 00:01:30]} {[%emt 00:00:06]} 50. Rc1 {[%clk
00:03:58]} {[%emt 00:00:11]} Rc6 {[%clk 00:01:38]} {[%emt 00:00:04]} 51. Re4
{[%clk 00:03:36]} {[%emt 00:00:33]} Rbxc3+ {[%clk 00:01:44]} {[%emt 00:00:04]}
52. Rxc3 {[%clk 00:03:45]} Rxc3+ {[%clk 00:01:53]} 53. Re3 {[%clk 00:03:46]}
{[%emt 00:00:08]} Rc6 {[%clk 00:02:00]} {[%emt 00:00:04]} 54. Kg4 {[%clk
00:03:54]} {[%emt 00:00:02]} Rd6 {[%clk 00:02:04]} {[%emt 00:00:06]} 55. f5+
{[%clk 00:03:46]} {[%emt 00:00:18]} Kf6 {[%clk 00:02:09]} {[%emt 00:00:04]} 56.
Kf4 {[%clk 00:03:34]} {[%emt 00:00:21]} Rc6 {[%clk 00:02:12]} {[%emt 00:00:07]}
57. g4 {[%clk 00:03:35]} {[%emt 00:00:09]} Rc4+ {[%clk 00:02:21]} {[%emt
00:00:01]} 58. Kf3 {[%clk 00:03:34]} {[%emt 00:00:10]} Kg5 {[%clk 00:02:16]}
{[%emt 00:00:15]} 59. Re7 {[%clk 00:02:55]} {[%emt 00:00:49]} Kf6 {[%clk
00:02:25]} {[%emt 00:00:02]} 60. Rb7 {[%clk 00:03:02]} {[%emt 00:00:03]} Rc6
{[%clk 00:02:28]} {[%emt 00:00:08]} 61. Rb4 {[%clk 00:03:07]} {[%emt 00:00:04]}
Kg5 {[%clk 00:02:31]} {[%emt 00:00:08]} 62. Rb7 {[%clk 00:02:34]} {[%emt
00:00:43]} Kf6 {[%clk 00:02:40]} {[%emt 00:00:02]} 63. Rd7 {[%clk 00:02:18]}
{[%emt 00:00:24]} Rc3+ {[%clk 00:02:45]} {[%emt 00:00:06]} 64. Ke4 {[%clk
00:02:26]} {[%emt 00:00:01]} Rc4+ {[%clk 00:02:54]} {[%emt 00:00:02]} 65. Kf3
{[%clk 00:02:00]} {[%emt 00:00:36]} Rc3+ {[%clk 00:03:00]} {[%emt 00:00:04]} 66.
Kf4 {[%clk 00:02:06]} {[%emt 00:00:04]} Rc4+ {[%clk 00:03:09]} {[%emt
00:00:01]} 67. Kg3 {[%clk 00:02:10]} {[%emt 00:00:04]} Rc3+ {[%clk 00:03:07]}
{[%emt 00:00:14]} 68. Kf2 {[%clk 00:02:00]} {[%emt 00:00:19]} Ra3 {[%clk
00:03:09]} {[%emt 00:00:07]} 69. Rd6+ {[%clk 00:01:59]} {[%emt 00:00:12]} Ke7
{[%clk 00:03:18]} {[%emt 00:00:01]} 70. Rg6 {[%clk 00:02:01]} {[%emt 00:00:05]}
Kf7 {[%clk 00:03:27]} {[%emt 00:00:04]} 71. Re6 {[%clk 00:02:00]} {[%emt
00:00:10]} Rb3 {[%clk 00:03:25]} {[%emt 00:00:13]} 72. Ke2 {[%clk 00:01:18]}
{[%emt 00:00:52]} Rg3 {[%clk 00:03:27]} {[%emt 00:00:07]} 73. Re4 {[%clk
00:01:26]} {[%emt 00:00:02]} Kf6 {[%clk 00:03:30]} {[%emt 00:00:07]} 74. Re6+
{[%clk 00:01:28]} {[%emt 00:00:08]} Kf7 {[%clk 00:03:39]} {[%emt 00:00:02]} 75.
Re4 {[%clk 00:01:37]} Ra3 {[%clk 00:03:47]} {[%emt 00:00:02]} 76. Re3 {[%clk
00:01:38]} {[%emt 00:00:10]} Ra4 {[%clk 00:03:55]} {[%emt 00:00:02]} 77. Kf3
{[%clk 00:01:46]} {[%emt 00:00:01]} Kf6 {[%clk 00:04:01]} {[%emt 00:00:03]} 78.
Re4 {[%clk 00:01:37]} {[%emt 00:00:20]} Ra6 {[%clk 00:04:00]} {[%emt 00:00:09]}
79. Kf4 {[%clk 00:01:45]} {[%emt 00:00:04]} Rb6 {[%clk 00:04:01]} {[%emt
00:00:09]} 80. g5+ {[%clk 00:01:53]} {[%emt 00:00:02]} Kf7 {[%clk 00:04:07]}
{[%emt 00:00:04]} 81. Rd4 {[%clk 00:01:45]} {[%emt 00:00:17]} Ke7 {[%clk
00:04:01]} {[%emt 00:00:16]} 82. Ra4 {[%clk 00:01:35]} {[%emt 00:00:21]} Rb7
{[%clk 00:03:58]} {[%emt 00:00:13]} 83. Ke4 {[%clk 00:01:33]} {[%emt 00:00:11]}
Rc7 {[%clk 00:04:02]} {[%emt 00:00:07]} 84. Ra5 {[%clk 00:01:33]} {[%emt
00:00:11]} Kf7 {[%clk 00:03:56]} {[%emt 00:00:15]} 85. Kd5 {[%clk 00:01:24]}
{[%emt 00:00:17]} Rb7 {[%clk 00:03:49]} {[%emt 00:00:18]} 86. Rc5 {[%clk
00:01:20]} {[%emt 00:00:14]} Rd7+ {[%clk 00:03:14]} {[%emt 00:00:46]} 87. Kc6
{[%clk 00:01:26]} {[%emt 00:00:02]} Ra7 {[%clk 00:03:17]} {[%emt 00:00:08]} 88.
Kb6 {[%clk 00:01:22]} {[%emt 00:00:14]} Rd7 {[%clk 00:03:25]} {[%emt 00:00:02]}
89. Rc7 {[%clk 00:01:17]} {[%emt 00:00:15]} Rxc7 {[%clk 00:03:27]} {[%emt
00:00:09]} 90. Kxc7 {[%clk 00:01:26]} {[%emt 00:00:01]} g6 {[%clk 00:03:36]} 91.
f6 {[%clk 00:01:30]} {[%emt 00:00:06]} Ke8 {[%clk 00:03:30]} {[%emt 00:00:16]}
92. Kc8 {[%clk 00:01:23]} {[%emt 00:00:17]} Kf7 {[%clk 00:03:35]} {[%emt
00:00:05]} 93. Kd7 {[%clk 00:01:31]} {[%emt 00:00:02]} Kf8 {[%clk 00:03:43]}
{[%emt 00:00:02]} 94. Kd6 {[%clk 00:01:23]} {[%emt 00:00:17]} Kf7 {[%clk
00:03:40]} {[%emt 00:00:14]} 95. Ke5 {[%clk 00:01:16]} {[%emt 00:00:17]} Kf8
{[%clk 00:03:39]} {[%emt 00:00:11]} 96. Kd5 {[%clk 00:01:08]} {[%emt 00:00:17]}
Kf7 {[%clk 00:03:45]} {[%emt 00:00:04]} 97. Kd6 {[%clk 00:01:15]} {[%emt
00:00:01]} Kf8 {[%clk 00:03:50]} {[%emt 00:00:08]} 98. Kd7 {[%clk 00:01:00]}
{[%emt 00:00:25]} Kf7 {[%clk 00:03:59]} 99. Kd6 {[%clk 00:01:09]} {[%emt
00:00:01]} Kf8 {[%clk 00:04:02]} {[%emt 00:00:07]} 100. Kd5 {[%clk 00:01:08]}
{[%emt 00:00:10]} Kf7 {[%clk 00:04:04]} {[%emt 00:00:09]} 101. Ke5 {[%clk
00:01:13]} {[%emt 00:00:05]} Kf8 {[%clk 00:04:09]} {[%emt 00:00:05]} 102. Ke6
{[%clk 00:01:20]} {[%emt 00:00:02]} Ke8 {[%clk 00:04:04]} {[%emt 00:00:14]} 103.
Kd6 {[%clk 00:01:27]} {[%emt 00:00:04]} Kf7 {[%clk 00:04:13]} {[%emt 00:00:02]}
104. Kd7 {[%clk 00:01:36]} Kf8 {[%clk 00:04:21]} {[%emt 00:00:01]} 105. Kd6
{[%clk 00:01:29]} {[%emt 00:00:17]} Kf7 {[%clk 00:04:24]} {[%emt 00:00:07]} 106.
Kd5 {[%clk 00:01:36]} {[%emt 00:00:02]} Kf8 {[%clk 00:04:31]} {[%emt 00:00:04]}
107. Ke5 {[%clk 00:01:44]} {[%emt 00:00:01]} Kf7 {[%clk 00:04:29]} {[%emt
00:00:12]} 108. Kd5 {[%clk 00:01:47]} {[%emt 00:00:06]} Kf8 {[%clk 00:04:30]}
{[%emt 00:00:09]} 109. Ke6 {[%clk 00:01:48]} {[%emt 00:00:09]} Ke8 {[%clk
00:04:38]} {[%emt 00:00:02]} 110. Ke5 {[%clk 00:01:15]} {[%emt 00:00:43]} Kf7
{[%clk 00:04:44]} {[%emt 00:00:04]} 111. Kd6 {[%clk 00:01:20]} {[%emt
00:00:02]} Kf8 {[%clk 00:04:45]} {[%emt 00:00:12]} 112. Kd5 {[%clk 00:01:16]}
{[%emt 00:00:13]} Kf7 {[%clk 00:04:48]} {[%emt 00:00:06]} 113. Ke5 {[%clk
00:01:25]} {[%emt 00:00:02]} Kf8 {[%clk 00:04:51]} {[%emt 00:00:08]} 114. Kf4
{[%clk 00:01:12]} {[%emt 00:00:22]} Kf7 {[%clk 00:04:51]} {[%emt 00:00:10]} 115.
Ke4 {[%clk 00:01:15]} {[%emt 00:00:07]} Ke6 {[%clk 00:04:38]} {[%emt 00:00:23]}
116. Kd4 {[%clk 00:01:03]} {[%emt 00:00:22]} Kf7 {[%clk 00:04:37]} {[%emt
00:00:12]} 117. Kd5 {[%clk 00:01:09]} {[%emt 00:00:02]} Kf8 {[%clk 00:04:43]}
{[%emt 00:00:06]} 118. Kd6 {[%clk 00:01:16]} {[%emt 00:00:02]} Kf7 {[%clk
00:04:51]} {[%emt 00:00:03]} 1/2-1/2



[ePGN "0.1;DGT LiveChess/2.2.6"]

[Event "MČR družstev mladších žáků 2024"]
[Site "Harrachov, Czech Republic"]
[Date "2024.06.15"]
[Round "3.17"]
[White "Prikryl Daniel"]
[Black "Chauvin Simon"]
[Result "1-0"]
[TimeControl "25+10"]
[WhiteFideId "23745770"]
[BlackFideId "23739053"]
[WhiteElo "1199"]
[BlackElo "1085"]

1. e4 {[%clk 00:25:18]} {[%emt 00:00:02]} c5 {[%clk 00:25:05]} {[%emt
00:00:25]} 2. Nf3 {[%clk 00:25:22]} {[%emt 00:00:05]} Nc6 {[%clk 00:25:11]}
{[%emt 00:00:05]} 3. Bb5 {[%clk 00:25:24]} {[%emt 00:00:08]} a6 {[%clk
00:24:37]} {[%emt 00:00:44]} 4. Bxc6 {[%clk 00:25:23]} {[%emt 00:00:11]} dxc6
{[%clk 00:24:35]} {[%emt 00:00:12]} 5. Nc3 {[%clk 00:25:17]} {[%emt 00:00:16]}
Bg4 {[%clk 00:24:02]} {[%emt 00:00:42]} 6. d3 {[%clk 00:25:10]} {[%emt
00:00:16]} e5 {[%clk 00:23:42]} {[%emt 00:00:30]} 7. h3 {[%clk 00:25:07]}
{[%emt 00:00:14]} Bxf3 {[%clk 00:23:01]} {[%emt 00:00:51]} 8. Qxf3 {[%clk
00:25:10]} {[%emt 00:00:06]} Nf6 {[%clk 00:22:29]} {[%emt 00:00:43]} 9. Be3
{[%clk 00:24:42]} {[%emt 00:00:32]} Be7 {[%clk 00:22:01]} {[%emt 00:00:44]} 10.
Qg3 {[%clk 00:24:29]} {[%emt 00:00:17]} Rg8 {[%clk 00:20:11]} {[%emt 00:02:06]}
11. Qxe5 {[%clk 00:24:10]} {[%emt 00:00:28]} Qd6 {[%clk 00:17:43]} {[%emt
00:02:38]} 12. Qxd6 {[%clk 00:23:24]} {[%emt 00:00:56]} Bxd6 {[%clk 00:17:48]}
{[%emt 00:00:05]} 13. O-O {[%clk 00:23:00]} {[%emt 00:00:33]} O-O-O {[%clk
00:17:11]} {[%emt 00:00:47]} 14. f4 {[%clk 00:22:22]} {[%emt 00:00:45]} Nd7
{[%clk 00:16:07]} {[%emt 00:01:16]} 15. d4 {[%clk 00:20:13]} {[%emt 00:02:18]}
cxd4 {[%clk 00:15:51]} {[%emt 00:00:28]} 16. Bxd4 {[%clk 00:19:55]} {[%emt
00:00:26]} Bc5 {[%clk 00:15:45]} {[%emt 00:00:18]} 17. Bxc5 {[%clk 00:19:34]}
{[%emt 00:00:31]} Nxc5 {[%clk 00:15:52]} {[%emt 00:00:03]} 18. Rad1 {[%clk
00:19:22]} {[%emt 00:00:21]} Rde8 {[%clk 00:14:58]} {[%emt 00:01:06]} 19. e5
{[%clk 00:18:48]} {[%emt 00:00:43]} g5 {[%clk 00:14:10]} {[%emt 00:00:57]} 20.
Rde1 {[%clk 00:18:20]} {[%emt 00:00:38]} Ne6 {[%clk 00:13:16]} {[%emt
00:01:04]} 21. f5 {[%clk 00:17:35]} {[%emt 00:00:54]} Nc5 {[%clk 00:11:00]}
{[%emt 00:02:25]} 22. Re3 {[%emt 00:00:34]} Nd7 {[%clk 00:09:11]} {[%emt
00:01:57]} 23. Rfe1 {[%clk 00:16:13]} {[%emt 00:01:11]} Re7 {[%clk 00:07:48]}
{[%emt 00:01:32]} 24. e6 {[%clk 00:14:49]} {[%emt 00:01:35]} fxe6 {[%clk
00:07:45]} {[%emt 00:00:14]} 25. fxe6 {[%clk 00:14:40]} {[%emt 00:00:18]} Nc5
{[%clk 00:07:25]} {[%emt 00:00:31]} 26. b4 {[%clk 00:14:34]} {[%emt 00:00:14]}
Nxe6 {[%clk 00:05:53]} {[%emt 00:01:45]} 27. Rxe6 {[%clk 00:14:25]} {[%emt
00:00:19]} Reg7 {[%clk 00:04:30]} {[%emt 00:01:34]} 28. Re8+ {[%clk 00:14:13]}
{[%emt 00:00:21]} Kd7 {[%clk 00:03:42]} {[%emt 00:00:54]} 29. Rxg8 {[%clk
00:14:06]} {[%emt 00:00:22]} Rxg8 {[%clk 00:03:47]} {[%emt 00:00:04]} 30. Re5
{[%clk 00:13:55]} {[%emt 00:00:20]} Rg7 {[%clk 00:02:28]} {[%emt 00:01:31]} 31.
Ne4 {[%clk 00:13:23]} {[%emt 00:00:40]} h6 {[%clk 00:02:13]} {[%emt 00:00:26]}
32. Nc5+ {[%clk 00:13:17]} {[%emt 00:00:16]} Kc7 {[%clk 00:00:35]} {[%emt
00:01:49]} 33. Re6 {[%clk 00:13:03]} {[%emt 00:00:23]} h5 {[%clk 00:00:24]}
{[%emt 00:00:22]} 34. Re5 {[%clk 00:12:51]} {[%emt 00:00:21]} 1-0



[ePGN "0.1;DGT LiveChess/2.2.6"]

[Event "MČR družstev mladších žáků 2024"]
[Site "Harrachov, Czech Republic"]
[Date "2024.06.15"]
[Round "3.19"]
[White "Honcharov Makar"]
[Black "Jezek Jiri"]
[Result "1-0"]
[TimeControl "25+10"]
[WhiteFideId "23746203"]
[BlackFideId "23754672"]
[WhiteElo "1806"]
[BlackElo "1503"]

1. e4 {[%clk 00:25:19]} {[%emt 00:00:02]} c5 {[%clk 00:25:18]} {[%emt
00:00:02]} 2. b4 {[%clk 00:25:28]} {[%emt 00:00:02]} cxb4 {[%clk 00:24:17]}
{[%emt 00:01:10]} 3. a3 {[%clk 00:25:37]} {[%emt 00:00:01]} bxa3 {[%clk
00:23:22]} {[%emt 00:01:03]} 4. d4 {[%clk 00:25:41]} {[%emt 00:00:07]} g6
{[%clk 00:22:12]} {[%emt 00:01:20]} 5. c3 {[%clk 00:25:26]} {[%emt 00:00:25]}
Bg7 {[%clk 00:21:52]} {[%emt 00:00:31]} 6. Bd3 {[%clk 00:25:19]} {[%emt
00:00:17]} e6 {[%clk 00:19:25]} {[%emt 00:02:37]} 7. Ne2 {[%clk 00:24:13]}
{[%emt 00:01:15]} d5 {[%clk 00:15:33]} {[%emt 00:04:02]} 8. e5 {[%clk
00:23:55]} {[%emt 00:00:29]} Ne7 {[%clk 00:14:49]} {[%emt 00:00:54]} 9. Nxa3
{[%clk 00:23:46]} {[%emt 00:00:18]} O-O {[%clk 00:12:12]} {[%emt 00:02:48]} 10.
O-O {[%clk 00:23:35]} {[%emt 00:00:21]} a6 {[%clk 00:11:04]} {[%emt 00:01:19]}
11. Bf4 {[%clk 00:18:17]} {[%emt 00:05:27]} Bd7 {[%clk 00:07:16]} {[%emt
00:03:58]} 12. Nc2 {[%clk 00:16:58]} {[%emt 00:01:29]} Bc6 {[%clk 00:04:33]}
{[%emt 00:02:53]} 13. Qd2 {[%clk 00:15:59]} {[%emt 00:01:09]} Nd7 {[%clk
00:03:05]} {[%emt 00:01:38]} 14. Bh6 {[%clk 00:15:55]} {[%emt 00:00:14]} Bxh6
{[%clk 00:01:05]} {[%emt 00:02:11]} 15. Qxh6 {[%clk 00:15:55]} {[%emt
00:00:10]} Nf5 {[%clk 00:00:52]} {[%emt 00:00:23]} 16. Bxf5 {[%clk 00:15:36]}
{[%emt 00:00:29]} exf5 {[%clk 00:00:59]} {[%emt 00:00:02]} 17. Nf4 {[%clk
00:14:49]} {[%emt 00:00:56]} Re8 {[%clk 00:00:46]} {[%emt 00:00:24]} 18. Ne3
{[%clk 00:14:39]} {[%emt 00:00:20]} Nf8 {[%clk 00:00:35]} {[%emt 00:00:20]} 19.
Nxf5 {[%clk 00:14:11]} {[%emt 00:00:38]} gxf5 {[%clk 00:00:20]} {[%emt
00:00:26]} 20. Nh5 {[%clk 00:14:20]} {[%emt 00:00:02]} Ne6 {[%clk 00:00:16]}
{[%emt 00:00:13]} 21. Nf6+ {[%clk 00:14:28]} {[%emt 00:00:01]} Kh8 {[%clk
00:00:20]} {[%emt 00:00:05]} 22. Qxh7# {[%clk 00:14:36]} {[%emt 00:00:04]} 1-0



[ePGN "0.1;DGT LiveChess/2.2.6"]

[Event "MČR družstev mladších žáků 2024"]
[Site "Harrachov, Czech Republic"]
[Date "2024.06.15"]
[Round "3.2"]
[White "Walder Hugo"]
[Black "Kala Jakub"]
[Result "0-1"]
[TimeControl "25+10"]
[WhiteFideId "23743360"]
[BlackFideId "23753897"]
[WhiteElo "1489"]
[BlackElo "1657"]

1. e4 {[%clk 00:25:18]} {[%emt 00:00:02]} c6 {[%clk 00:25:19]} {[%emt
00:00:02]} 2. d4 {[%clk 00:25:26]} {[%emt 00:00:01]} d5 {[%clk 00:25:28]}
{[%emt 00:00:01]} 3. e5 {[%clk 00:25:35]} Bf5 {[%clk 00:25:36]} {[%emt
00:00:02]} 4. h4 {[%clk 00:25:41]} {[%emt 00:00:04]} h5 {[%clk 00:25:38]}
{[%emt 00:00:06]} 5. Bd3 {[%clk 00:25:44]} {[%emt 00:00:09]} Bxd3 {[%clk
00:25:45]} {[%emt 00:00:03]} 6. Qxd3 {[%clk 00:25:52]} {[%emt 00:00:01]} Qa5+
{[%clk 00:24:57]} {[%emt 00:00:58]} 7. c3 {[%clk 00:25:02]} {[%emt 00:01:00]}
Qa6 {[%clk 00:24:35]} {[%emt 00:00:33]} 8. Qxa6 {[%clk 00:24:39]} {[%emt
00:00:34]} Nxa6 {[%clk 00:24:43]} {[%emt 00:00:02]} 9. Be3 {[%clk 00:22:59]}
{[%emt 00:01:48]} e6 {[%clk 00:24:28]} {[%emt 00:00:27]} 10. Nd2 {[%clk
00:22:15]} {[%emt 00:00:54]} Nh6 {[%clk 00:23:19]} {[%emt 00:01:19]} 11. Nb3
{[%clk 00:20:16]} {[%emt 00:02:09]} Nf5 {[%clk 00:22:15]} {[%emt 00:01:15]} 12.
Kd2 {[%clk 00:17:40]} {[%emt 00:02:41]} Be7 {[%clk 00:20:23]} {[%emt 00:02:07]}
13. Bg5 {[%clk 00:16:43]} {[%emt 00:01:07]} b6 {[%clk 00:18:34]} {[%emt
00:01:59]} 14. Bxe7 {[%clk 00:16:04]} {[%emt 00:00:49]} Kxe7 {[%clk 00:18:42]}
{[%emt 00:00:02]} 15. Ne2 {[%clk 00:15:12]} {[%emt 00:01:02]} c5 {[%clk
00:17:17]} {[%emt 00:01:35]} 16. Rh3 {[%clk 00:13:17]} {[%emt 00:02:05]} Rab8
{[%clk 00:14:11]} {[%emt 00:03:15]} 17. Ng3 {[%clk 00:13:05]} {[%emt 00:00:21]}
Nh6 {[%clk 00:11:59]} {[%emt 00:02:24]} 18. Nxh5 {[%clk 00:11:38]} {[%emt
00:01:37]} Ng4 {[%clk 00:11:41]} {[%emt 00:00:28]} 19. Ng3 {[%clk 00:09:28]}
{[%emt 00:02:20]} Nxf2 {[%clk 00:11:31]} {[%emt 00:00:20]} 20. Rh2 {[%clk
00:09:30]} {[%emt 00:00:04]} c4 {[%clk 00:09:58]} {[%emt 00:01:46]} 21. Nc1
{[%clk 00:08:55]} {[%emt 00:00:45]} Rh6 {[%clk 00:08:51]} {[%emt 00:01:16]} 22.
Nce2 {[%clk 00:03:14]} {[%emt 00:05:51]} Nd3 {[%clk 00:07:42]} {[%emt
00:01:19]} 23. Kc2 {[%clk 00:02:50]} {[%emt 00:00:31]} Rbh8 {[%clk 00:07:35]}
{[%emt 00:00:21]} 24. h5 {[%clk 00:01:44]} {[%emt 00:01:16]} g6 {[%clk
00:07:28]} {[%emt 00:00:17]} 25. Rah1 {[%clk 00:01:40]} {[%emt 00:00:15]} Nf2
{[%clk 00:07:14]} {[%emt 00:00:23]} 26. Rf1 {[%clk 00:01:48]} {[%emt 00:00:01]}
Ng4 {[%clk 00:07:18]} {[%emt 00:00:06]} 27. Rfh1 {[%clk 00:01:34]} {[%emt
00:00:25]} Nxh2 {[%clk 00:07:23]} {[%emt 00:00:05]} 28. Rxh2 {[%clk 00:01:43]}
gxh5 {[%clk 00:07:23]} {[%emt 00:00:10]} 29. Rh4 {[%clk 00:01:21]} {[%emt
00:00:31]} Nc7 {[%clk 00:06:35]} {[%emt 00:00:58]} 30. Nf4 {[%clk 00:01:26]}
{[%emt 00:00:05]} Ne8 {[%clk 00:04:21]} {[%emt 00:02:25]} 31. Rxh5 {[%clk
00:00:53]} {[%emt 00:00:42]} Rxh5 {[%clk 00:04:21]} {[%emt 00:00:11]} 32. Ngxh5
{[%clk 00:01:02]} Rg8 {[%clk 00:04:02]} {[%emt 00:00:27]} 33. g3 {[%clk
00:01:10]} {[%emt 00:00:04]} Rg5 {[%clk 00:03:09]} {[%emt 00:01:02]} 34. Kd2
{[%clk 00:00:45]} {[%emt 00:00:36]} f6 {[%clk 00:02:38]} {[%emt 00:00:40]} 35.
exf6+ {[%clk 00:00:25]} {[%emt 00:00:30]} Nxf6 {[%clk 00:02:41]} {[%emt
00:00:07]} 36. Nxf6 {[%clk 00:00:19]} {[%emt 00:00:16]} Kxf6 {[%clk 00:02:49]}
{[%emt 00:00:02]} 37. Ne2 {[%clk 00:00:28]} Kf5 {[%clk 00:02:30]} {[%emt
00:00:29]} 38. Ke3 {[%clk 00:00:35]} {[%emt 00:00:03]} Rh5 {[%clk 00:02:22]}
{[%emt 00:00:17]} 39. Kf3 {[%clk 00:00:30]} {[%emt 00:00:16]} Rh1 {[%clk
00:02:02]} {[%emt 00:00:29]} 40. Nf4 {[%emt 00:00:24]} Rf1+ {[%clk 00:01:56]}
{[%emt 00:00:15]} 41. Ke2 {[%clk 00:00:17]} {[%emt 00:00:11]} Rb1 {[%clk
00:01:50]} {[%emt 00:00:16]} 42. g4+ {[%clk 00:00:22]} {[%emt 00:00:05]} Kxf4
{[%clk 00:01:56]} {[%emt 00:00:04]} 0-1



[ePGN "0.1;DGT LiveChess/2.2.6"]